[Event "Titled Tuesday Blitz March 28 Early 2023"]
[White "Skaric, Djuro"]
[Black "Perez Gormaz, Matias"]
[WhiteFideId "934569"]
[BlackFideId "3406342"]
[WhiteElo "2282"]
[BlackElo "2362"]
[Result "0-1"]
[Round "10"]
[TimeControl "180+2"]
[Date "2023.03.28"]
[WhiteClock "0:01:13"]
[BlackClock "0:00:12"]

1. g3 {[%clk 0:03:00]}  d5 {[%clk 0:02:58]} 2. Bg2 {[%clk 0:03:01]}  Nf6 {[%clk 0:02:56]} 3. d3 {[%clk 0:03:01]}  e5 {[%clk 0:02:54]} 4. Nf3 {[%clk 0:03:02]}  Bd6 {[%clk 0:02:54]} 5. O-O {[%clk 0:03:02]}  O-O {[%clk 0:02:54]} 6. Nc3 {[%clk 0:03:02]}  c6 {[%clk 0:02:51]} 7. e4 {[%clk 0:03:01]}  h6 {[%clk 0:02:50]} 8. h3 {[%clk 0:03:01]}  Re8 {[%clk 0:02:49]} 9. Nd2 {[%clk 0:03:01]}  Be6 {[%clk 0:02:46]} 10. f4 {[%clk 0:02:56]}  exf4 {[%clk 0:02:42]} 11. gxf4 {[%clk 0:02:56]}  dxe4 {[%clk 0:02:39]} 12. dxe4 {[%clk 0:02:56]}  Nbd7 {[%clk 0:02:15]} 13. e5 {[%clk 0:02:55]}  Bc5+ {[%clk 0:02:15]} 14. Kh2 {[%clk 0:02:52]}  Nd5 {[%clk 0:02:02]} 15. Nde4 {[%clk 0:02:50]}  Nxc3 {[%clk 0:01:55]} 16. bxc3 {[%clk 0:02:45]}  Bf8 {[%clk 0:01:51]} 17. Be3 {[%clk 0:02:38]}  Bd5 {[%clk 0:01:46]} 18. Rg1 {[%clk 0:02:37]}  Qh4 {[%clk 0:00:58]} 19. Qg4 {[%clk 0:02:31]}  Qxg4 {[%clk 0:00:58]} 20. hxg4 {[%clk 0:02:31]}  Nxe5 {[%clk 0:00:51]} 21. fxe5 {[%clk 0:02:25]}  Rxe5 {[%clk 0:00:52]} 22. Bf4 {[%clk 0:02:25]}  Rxe4 {[%clk 0:00:51]} 23. Bxe4 {[%clk 0:02:24]}  Bxe4 {[%clk 0:00:52]} 24. Rad1 {[%clk 0:02:10]}  Bd5 {[%clk 0:00:47]} 25. a4 {[%clk 0:02:07]}  b6 {[%clk 0:00:43]} 26. g5 {[%clk 0:02:06]}  hxg5 {[%clk 0:00:42]} 27. Rxg5 {[%clk 0:02:05]}  f6 {[%clk 0:00:41]} 28. Rg3 {[%clk 0:02:05]}  Kf7 {[%clk 0:00:41]} 29. Rgd3 {[%clk 0:01:51]}  Bc5 {[%clk 0:00:32]} 30. Be3 {[%clk 0:01:38]}  Bd6+ {[%clk 0:00:23]} 31. Kg1 {[%clk 0:01:36]}  Be7 {[%clk 0:00:19]} 32. Ra1 {[%clk 0:01:26]}  Rh8 {[%clk 0:00:19]} 33. Rdd1 {[%clk 0:01:23]}  Rh1+ {[%clk 0:00:17]} 34. Kf2 {[%clk 0:01:23]}  Rh2+ {[%clk 0:00:18]} 35. Kg3 {[%clk 0:01:17]}  Bd6+ {[%clk 0:00:15]} 36. Bf4 {[%clk 0:01:16]}  Rg2+ {[%clk 0:00:14]} 37. Kh3 {[%clk 0:01:16]}  Bxf4 {[%clk 0:00:14]} 38. Rxd5 {[%clk 0:01:15]}  Rg3+ {[%clk 0:00:15]} 39. Kh4 {[%clk 0:01:15]}  cxd5 {[%clk 0:00:15]} 40. a5 {[%clk 0:01:16]}  Rg6 {[%clk 0:00:14]} 41. a6 {[%clk 0:01:14]}  f5 {[%clk 0:00:12]} 42. Kh3 {[%clk 0:01:13]}  Rg3+ {[%clk 0:00:12]} 43. Kh4 {[%clk 0:01:13]}  g5+ {[%clk 0:00:12]} 0-1


[Site "https://www.chess.com"]

[Event "Titled Tuesday Blitz March 28 Early 2023"]
[White "Zhigalko, Sergei"]
[Black "Lenaerts, Lennert"]
[WhiteFideId "13502956"]
[BlackFideId "211435"]
[WhiteElo "2626"]
[BlackElo "2334"]
[Result "1-0"]
[Round "10"]
[TimeControl "180+2"]
[Date "2023.03.28"]
[WhiteClock "0:00:04"]
[BlackClock "0:00:27"]

1. e4 {[%clk 0:03:00]}  e5 {[%clk 0:03:00]} 2. Nf3 {[%clk 0:03:01]}  Nc6 {[%clk 0:03:00]} 3. Bc4 {[%clk 0:03:01]}  Bc5 {[%clk 0:03:00]} 4. b4 {[%clk 0:03:00]}  Bxb4 {[%clk 0:03:00]} 5. c3 {[%clk 0:03:00]}  Ba5 {[%clk 0:03:01]} 6. d4 {[%clk 0:03:01]}  d6 {[%clk 0:02:56]} 7. Qb3 {[%clk 0:02:59]}  Qe7 {[%clk 0:02:55]} 8. d5 {[%clk 0:02:50]}  Nd4 {[%clk 0:02:55]} 9. Nxd4 {[%clk 0:02:49]}  exd4 {[%clk 0:02:55]} 10. O-O {[%clk 0:02:47]}  Bb6 {[%clk 0:02:51]} 11. cxd4 {[%clk 0:02:36]}  Bxd4 {[%clk 0:02:48]} 12. Bb2 {[%clk 0:02:35]}  Bxb2 {[%clk 0:02:48]} 13. Qxb2 {[%clk 0:02:36]}  Nf6 {[%clk 0:02:48]} 14. Nc3 {[%clk 0:02:36]}  O-O {[%clk 0:02:48]} 15. Rae1 {[%clk 0:02:37]}  Re8 {[%clk 0:02:45]} 16. f4 {[%clk 0:02:36]}  Nd7 {[%clk 0:02:45]} 17. e5 {[%clk 0:02:28]}  dxe5 {[%clk 0:02:44]} 18. Ne4 {[%clk 0:02:16]}  Nb6 {[%clk 0:02:28]} 19. Bb3 {[%clk 0:02:12]}  Bf5 {[%clk 0:02:27]} 20. d6 {[%clk 0:01:48]}  cxd6 {[%clk 0:02:25]} 21. fxe5 {[%clk 0:01:48]}  Qxe5 {[%clk 0:01:53]} 22. Bxf7+ {[%clk 0:01:12]}  Kh8 {[%clk 0:01:52]} 23. Qf2 {[%clk 0:00:58]}  Re7 {[%clk 0:01:00]} 24. Qxf5 {[%clk 0:00:53]}  Qxf5 {[%clk 0:01:01]} 25. Rxf5 {[%clk 0:00:52]}  Rf8 {[%clk 0:01:00]} 26. Re2 {[%clk 0:00:16]}  Rexf7 {[%clk 0:00:20]} 27. Rxf7 {[%clk 0:00:17]}  Rxf7 {[%clk 0:00:21]} 28. Nxd6 {[%clk 0:00:17]}  Rf8 {[%clk 0:00:21]} 29. Re7 {[%clk 0:00:14]}  Rb8 {[%clk 0:00:20]} 30. Rxb7 {[%clk 0:00:03]}  Rxb7 {[%clk 0:00:20]} 31. Nxb7 {[%clk 0:00:04]}  Kg8 {[%clk 0:00:20]} 32. Kf2 {[%clk 0:00:04]}  Kf7 {[%clk 0:00:21]} 33. Ke3 {[%clk 0:00:05]}  Ke6 {[%clk 0:00:21]} 34. Kd4 {[%clk 0:00:06]}  Nd7 {[%clk 0:00:20]} 35. Nc5+ {[%clk 0:00:05]}  Nxc5 {[%clk 0:00:18]} 36. Kxc5 {[%clk 0:00:06]}  Kd7 {[%clk 0:00:18]} 37. Kd5 {[%clk 0:00:06]}  h6 {[%clk 0:00:18]} 38. h3 {[%clk 0:00:04]}  h5 {[%clk 0:00:17]} 39. h4 {[%clk 0:00:05]}  g6 {[%clk 0:00:17]} 40. g3 {[%clk 0:00:05]}  a6 {[%clk 0:00:15]} 41. a3 {[%clk 0:00:04]}  Ke7 {[%clk 0:00:15]} 42. Kc6 {[%clk 0:00:04]}  Ke6 {[%clk 0:00:16]} 43. Kb6 {[%clk 0:00:04]}  g5 {[%clk 0:00:17]} 44. hxg5 {[%clk 0:00:04]}  Kf5 {[%clk 0:00:17]} 45. Kxa6 {[%clk 0:00:04]}  Kxg5 {[%clk 0:00:18]} 46. a4 {[%clk 0:00:04]}  Kg4 {[%clk 0:00:19]} 47. Kb6 {[%clk 0:00:03]}  Kxg3 {[%clk 0:00:20]} 48. a5 {[%clk 0:00:03]}  h4 {[%clk 0:00:21]} 49. a6 {[%clk 0:00:04]}  h3 {[%clk 0:00:22]} 50. a7 {[%clk 0:00:05]}  Kg2 {[%clk 0:00:21]} 51. a8=Q+ {[%clk 0:00:05]}  Kg1 {[%clk 0:00:22]} 52. Qa1+ {[%clk 0:00:04]}  Kg2 {[%clk 0:00:23]} 53. Qb2+ {[%clk 0:00:04]}  Kg1 {[%clk 0:00:24]} 54. Qc1+ {[%clk 0:00:04]}  Kg2 {[%clk 0:00:24]} 55. Qd2+ {[%clk 0:00:05]}  Kg1 {[%clk 0:00:25]} 56. Qe3+ {[%clk 0:00:04]}  Kg2 {[%clk 0:00:26]} 57. Qe4+ {[%clk 0:00:04]}  Kf1 {[%clk 0:00:27]} 58. Qf3+ {[%clk 0:00:04]} 1-0


[Site "https://www.chess.com"]

[Event "Titled Tuesday Blitz March 28 Early 2023"]
[White "Castellanos Villela, Alejandro"]
[Black "Zemlyanskii, Ivan"]
[WhiteFideId "3446379"]
[BlackFideId "24249971"]
[WhiteElo "2102"]
[BlackElo "2233"]
[Result "0-1"]
[Round "10"]
[TimeControl "180+2"]
[Date "2023.03.28"]
[WhiteClock "0:00:01"]
[BlackClock "0:00:22"]

1. Nf3 {[%clk 0:03:00]}  d5 {[%clk 0:02:58]} 2. g3 {[%clk 0:02:59]}  Nf6 {[%clk 0:02:59]} 3. Bg2 {[%clk 0:02:59]}  c5 {[%clk 0:03:00]} 4. O-O {[%clk 0:02:58]}  e6 {[%clk 0:03:00]} 5. c4 {[%clk 0:02:57]}  d4 {[%clk 0:03:00]} 6. b4 {[%clk 0:02:55]}  cxb4 {[%clk 0:02:55]} 7. a3 {[%clk 0:02:54]}  a5 {[%clk 0:02:51]} 8. Bb2 {[%clk 0:02:53]}  Nc6 {[%clk 0:02:49]} 9. e3 {[%clk 0:02:53]}  Bc5 {[%clk 0:02:36]} 10. axb4 {[%clk 0:02:48]}  Bxb4 {[%clk 0:02:35]} 11. Nxd4 {[%clk 0:02:46]}  Bd7 {[%clk 0:02:25]} 12. Nc2 {[%clk 0:02:37]}  Be7 {[%clk 0:02:22]} 13. d4 {[%clk 0:02:36]}  O-O {[%clk 0:02:17]} 14. Nc3 {[%clk 0:02:36]}  Qc8 {[%clk 0:02:07]} 15. Qe2 {[%clk 0:02:34]}  Nb4 {[%clk 0:02:04]} 16. Nxb4 {[%clk 0:02:29]}  axb4 {[%clk 0:02:03]} 17. Ne4 {[%clk 0:02:28]}  Bc6 {[%clk 0:02:00]} 18. d5 {[%clk 0:02:26]}  exd5 {[%clk 0:01:53]} 19. Nxf6+ {[%clk 0:02:26]}  Bxf6 {[%clk 0:01:54]} 20. Bxf6 {[%clk 0:02:25]}  gxf6 {[%clk 0:01:55]} 21. cxd5 {[%clk 0:02:25]}  Rxa1 {[%clk 0:01:47]} 22. Rxa1 {[%clk 0:02:24]}  Bd7 {[%clk 0:01:48]} 23. Qb2 {[%clk 0:02:22]}  Qc3 {[%clk 0:01:46]} 24. Rb1 {[%clk 0:02:09]}  Rc8 {[%clk 0:01:41]} 25. Qe2 {[%clk 0:01:32]}  b3 {[%clk 0:01:28]} 26. Be4 {[%clk 0:01:24]}  f5 {[%clk 0:01:02]} 27. Bf3 {[%clk 0:01:06]}  Qc2 {[%clk 0:00:56]} 28. Qd1 {[%clk 0:00:56]}  b2 {[%clk 0:00:51]} 29. Qxc2 {[%clk 0:00:39]}  Rxc2 {[%clk 0:00:51]} 30. Kg2 {[%clk 0:00:39]}  Bb5 {[%clk 0:00:43]} 31. d6 {[%clk 0:00:29]}  Kf8 {[%clk 0:00:41]} 32. Bxb7 {[%clk 0:00:27]}  Bc4 {[%clk 0:00:34]} 33. e4 {[%clk 0:00:20]}  Ba2 {[%clk 0:00:30]} 34. Re1 {[%clk 0:00:08]}  b1=Q {[%clk 0:00:28]} 35. Rxb1 {[%clk 0:00:08]}  Bxb1 {[%clk 0:00:29]} 36. e5 {[%clk 0:00:07]}  Re2 {[%clk 0:00:23]} 37. Ba6 {[%clk 0:00:01]}  Rxe5 {[%clk 0:00:22]} 38. f4 {[%clk 0:00:02]}  Rd5 {[%clk 0:00:22]} 39. Kh3 {[%clk 0:00:01]}  Rxd6 {[%clk 0:00:22]} 0-1


[Site "https://www.chess.com"]

[Event "Titled Tuesday Blitz March 28 Early 2023"]
[White "Ibadov, Dashgyn"]
[Black "Krysa, Leandro"]
[WhiteFideId "24107514"]
[BlackFideId "116807"]
[WhiteElo "2208"]
[BlackElo "2485"]
[Result "0-1"]
[Round "10"]
[TimeControl "180+2"]
[Date "2023.03.28"]
[WhiteClock "0:00:02"]
[BlackClock "0:00:24"]

1. e4 {[%clk 0:03:00]}  c5 {[%clk 0:02:59]} 2. Nf3 {[%clk 0:03:00]}  Nc6 {[%clk 0:02:59]} 3. Bb5 {[%clk 0:02:59]}  g6 {[%clk 0:02:57]} 4. O-O {[%clk 0:02:58]}  Bg7 {[%clk 0:02:56]} 5. c3 {[%clk 0:02:59]}  e5 {[%clk 0:02:47]} 6. d4 {[%clk 0:02:57]}  cxd4 {[%clk 0:02:47]} 7. cxd4 {[%clk 0:02:57]}  exd4 {[%clk 0:02:47]} 8. Bf4 {[%clk 0:02:56]}  a6 {[%clk 0:02:45]} 9. Bd3 {[%clk 0:02:45]}  Nge7 {[%clk 0:02:37]} 10. Bd6 {[%clk 0:02:44]}  O-O {[%clk 0:02:30]} 11. Nbd2 {[%clk 0:02:42]}  b6 {[%clk 0:02:21]} 12. h4 {[%clk 0:02:32]}  Bb7 {[%clk 0:02:16]} 13. h5 {[%clk 0:02:31]}  Re8 {[%clk 0:02:16]} 14. Ng5 {[%clk 0:02:01]}  Nc8 {[%clk 0:02:12]} 15. Nxf7 {[%clk 0:02:01]}  Kxf7 {[%clk 0:02:08]} 16. Bc4+ {[%clk 0:02:00]}  Re6 {[%clk 0:02:05]} 17. e5 {[%clk 0:01:48]}  Nxe5 {[%clk 0:01:47]} 18. Bxe5 {[%clk 0:01:39]}  Bxe5 {[%clk 0:01:48]} 19. f4 {[%clk 0:01:39]}  Bg7 {[%clk 0:01:22]} 20. hxg6+ {[%clk 0:01:31]}  hxg6 {[%clk 0:01:22]} 21. f5 {[%clk 0:01:32]}  gxf5 {[%clk 0:01:23]} 22. Qh5+ {[%clk 0:01:25]}  Kg8 {[%clk 0:01:22]} 23. Rxf5 {[%clk 0:01:21]}  Nd6 {[%clk 0:01:17]} 24. Bxe6+ {[%clk 0:01:05]}  dxe6 {[%clk 0:01:16]} 25. Rg5 {[%clk 0:01:03]}  Nf5 {[%clk 0:01:08]} 26. Qg6 {[%clk 0:00:56]}  Qe7 {[%clk 0:01:01]} 27. Rh5 {[%clk 0:00:48]}  Qf6 {[%clk 0:00:48]} 28. Qh7+ {[%clk 0:00:48]}  Kf7 {[%clk 0:00:48]} 29. Nc4 {[%clk 0:00:05]}  Rh8 {[%clk 0:00:43]} 30. Rxf5 {[%clk 0:00:01]}  exf5 {[%clk 0:00:33]} 31. Nd6+ {[%clk 0:00:02]}  Ke6 {[%clk 0:00:24]} 0-1


[Site "https://www.chess.com"]

[Event "Titled Tuesday Blitz March 28 Early 2023"]
[White "Salemgareev, Tagir"]
[Black "Alinasab, Mobina"]
[WhiteFideId "24199052"]
[BlackFideId "12528897"]
[WhiteElo "2366"]
[BlackElo "2141"]
[Result "0-1"]
[Round "10"]
[TimeControl "180+2"]
[Date "2023.03.28"]
[WhiteClock "0:00:13"]
[BlackClock "0:00:13"]

1. d4 {[%clk 0:02:59]}  Nf6 {[%clk 0:02:59]} 2. c4 {[%clk 0:02:58]}  e6 {[%clk 0:02:59]} 3. Nf3 {[%clk 0:02:58]}  b6 {[%clk 0:02:58]} 4. g3 {[%clk 0:02:57]}  Bb7 {[%clk 0:02:57]} 5. Bg2 {[%clk 0:02:57]}  Be7 {[%clk 0:02:57]} 6. O-O {[%clk 0:02:57]}  O-O {[%clk 0:02:56]} 7. Re1 {[%clk 0:02:57]}  d5 {[%clk 0:02:56]} 8. cxd5 {[%clk 0:02:56]}  exd5 {[%clk 0:02:55]} 9. Nc3 {[%clk 0:02:56]}  c5 {[%clk 0:02:55]} 10. Bf4 {[%clk 0:02:55]}  Na6 {[%clk 0:02:55]} 11. Qb3 {[%clk 0:02:33]}  Nc7 {[%clk 0:02:52]} 12. dxc5 {[%clk 0:02:31]}  Bxc5 {[%clk 0:02:52]} 13. Rad1 {[%clk 0:02:29]}  Ne6 {[%clk 0:02:48]} 14. Be5 {[%clk 0:02:15]}  Ng4 {[%clk 0:02:37]} 15. e3 {[%clk 0:02:15]}  Nxe5 {[%clk 0:02:04]} 16. Nxe5 {[%clk 0:02:14]}  Qc7 {[%clk 0:01:45]} 17. Bxd5 {[%clk 0:02:13]}  Bxd5 {[%clk 0:01:39]} 18. Rxd5 {[%clk 0:02:13]}  Rfd8 {[%clk 0:01:35]} 19. Red1 {[%clk 0:02:12]}  Rxd5 {[%clk 0:01:33]} 20. Rxd5 {[%clk 0:02:09]}  Rd8 {[%clk 0:01:34]} 21. Rxd8+ {[%clk 0:02:08]}  Qxd8 {[%clk 0:01:35]} 22. Qd5 {[%clk 0:02:06]}  Qxd5 {[%clk 0:01:26]} 23. Nxd5 {[%clk 0:02:07]}  f6 {[%clk 0:01:26]} 24. Nc6 {[%clk 0:02:06]}  a5 {[%clk 0:01:23]} 25. a4 {[%clk 0:01:54]}  Kf7 {[%clk 0:01:22]} 26. Kf1 {[%clk 0:01:54]}  Ke8 {[%clk 0:01:22]} 27. Ke2 {[%clk 0:01:51]}  Kd7 {[%clk 0:01:22]} 28. Na7 {[%clk 0:01:51]}  Kd6 {[%clk 0:01:15]} 29. Nc3 {[%clk 0:01:45]}  Bb4 {[%clk 0:01:14]} 30. Ne4+ {[%clk 0:01:41]}  Kd5 {[%clk 0:01:10]} 31. Kd3 {[%clk 0:01:34]}  f5 {[%clk 0:01:09]} 32. Nc3+ {[%clk 0:01:34]}  Bxc3 {[%clk 0:01:05]} 33. Kxc3 {[%clk 0:01:33]}  Nc5 {[%clk 0:01:05]} 34. Nc8 {[%clk 0:01:11]}  Nxa4+ {[%clk 0:01:01]} 35. Kc2 {[%clk 0:01:10]}  b5 {[%clk 0:00:58]} 36. Ne7+ {[%clk 0:01:10]}  Ke4 {[%clk 0:00:53]} 37. Nc6 {[%clk 0:01:10]}  Kf3 {[%clk 0:00:46]} 38. Nd4+ {[%clk 0:01:09]}  Kxf2 {[%clk 0:00:46]} 39. Nxf5 {[%clk 0:01:09]}  g6 {[%clk 0:00:46]} 40. Nd4 {[%clk 0:01:07]}  Kxe3 {[%clk 0:00:45]} 41. Nxb5 {[%clk 0:01:06]}  Kf2 {[%clk 0:00:40]} 42. Nd6 {[%clk 0:00:24]}  Kg2 {[%clk 0:00:35]} 43. Nf7 {[%clk 0:00:19]}  Kxh2 {[%clk 0:00:29]} 44. g4 {[%clk 0:00:19]}  Kg3 {[%clk 0:00:28]} 45. g5 {[%clk 0:00:18]}  Kg4 {[%clk 0:00:26]} 46. Ne5+ {[%clk 0:00:09]}  Kxg5 {[%clk 0:00:25]} 47. Nd7 {[%clk 0:00:10]}  h5 {[%clk 0:00:22]} 48. b3 {[%clk 0:00:10]}  h4 {[%clk 0:00:17]} 49. bxa4 {[%clk 0:00:10]}  h3 {[%clk 0:00:17]} 50. Ne5 {[%clk 0:00:10]}  Kf5 {[%clk 0:00:16]} 51. Nf3 {[%clk 0:00:10]}  Kf4 {[%clk 0:00:16]} 52. Nh2 {[%clk 0:00:09]}  Kg3 {[%clk 0:00:13]} 53. Nf1+ {[%clk 0:00:09]}  Kg2 {[%clk 0:00:13]} 54. Ne3+ {[%clk 0:00:09]}  Kf2 {[%clk 0:00:13]} 55. Ng4+ {[%clk 0:00:09]}  Kg3 {[%clk 0:00:13]} 56. Ne3 {[%clk 0:00:09]}  h2 {[%clk 0:00:13]} 57. Nf1+ {[%clk 0:00:09]}  Kh3 {[%clk 0:00:13]} 58. Nxh2 {[%clk 0:00:10]}  Kxh2 {[%clk 0:00:14]} 59. Kd3 {[%clk 0:00:11]}  g5 {[%clk 0:00:14]} 60. Kc4 {[%clk 0:00:11]}  g4 {[%clk 0:00:15]} 61. Kb5 {[%clk 0:00:12]}  g3 {[%clk 0:00:16]} 62. Kxa5 {[%clk 0:00:13]}  g2 {[%clk 0:00:17]} 63. Ka6 {[%clk 0:00:13]}  g1=Q {[%clk 0:00:18]} 64. a5 {[%clk 0:00:14]}  Qg6+ {[%clk 0:00:12]} 65. Kb7 {[%clk 0:00:14]}  Qf7+ {[%clk 0:00:13]} 66. Kb6 {[%clk 0:00:13]}  Qe6+ {[%clk 0:00:12]} 67. Kb7 {[%clk 0:00:14]}  Qd7+ {[%clk 0:00:13]} 68. Kb6 {[%clk 0:00:13]}  Qd8+ {[%clk 0:00:13]} 69. Ka6 {[%clk 0:00:13]}  Qa8+ {[%clk 0:00:13]} 0-1


[Site "https://www.chess.com"]

[Event "Titled Tuesday Blitz March 28 Early 2023"]
[White "Jeet, Jain"]
[Black "Mikhailovsky, Vladimir"]
[WhiteFideId "5073022"]
[BlackFideId "34105414"]
[WhiteElo "2067"]
[BlackElo "2293"]
[Result "0-1"]
[Round "10"]
[TimeControl "180+2"]
[Date "2023.03.28"]
[WhiteClock "0:02:11"]
[BlackClock "0:02:07"]

1. c4 {[%clk 0:03:00]}  g6 {[%clk 0:02:57]} 2. Nc3 {[%clk 0:02:56]}  Bg7 {[%clk 0:02:58]} 3. Nf3 {[%clk 0:02:56]}  e5 {[%clk 0:02:53]} 4. e3 {[%clk 0:02:54]}  Ne7 {[%clk 0:02:53]} 5. d4 {[%clk 0:02:54]}  exd4 {[%clk 0:02:54]} 6. Nxd4 {[%clk 0:02:54]}  O-O {[%clk 0:02:55]} 7. h4 {[%clk 0:02:53]}  d5 {[%clk 0:02:54]} 8. h5 {[%clk 0:02:51]}  Nbc6 {[%clk 0:02:55]} 9. Nxc6 {[%clk 0:02:50]}  bxc6 {[%clk 0:02:55]} 10. hxg6 {[%clk 0:02:45]}  hxg6 {[%clk 0:02:53]} 11. Bd3 {[%clk 0:02:41]}  Be6 {[%clk 0:02:51]} 12. Qf3 {[%clk 0:02:40]}  dxc4 {[%clk 0:02:43]} 13. Bc2 {[%clk 0:02:37]}  Nd5 {[%clk 0:02:43]} 14. Bd2 {[%clk 0:02:36]}  Nb4 {[%clk 0:02:42]} 15. Be4 {[%clk 0:02:29]}  Nd3+ {[%clk 0:02:42]} 16. Ke2 {[%clk 0:02:27]}  f5 {[%clk 0:02:19]} 17. Bxc6 {[%clk 0:02:25]}  Ne5 {[%clk 0:02:20]} 18. Bxa8 {[%clk 0:02:11]}  Nxf3 {[%clk 0:02:10]} 19. Bxf3 {[%clk 0:02:12]}  Qd3+ {[%clk 0:02:09]} 20. Ke1 {[%clk 0:02:12]}  Rd8 {[%clk 0:02:07]} 21. Rd1 {[%clk 0:02:11]}  Qc2 {[%clk 0:02:07]} 0-1


[Site "https://www.chess.com"]

[Event "Titled Tuesday Blitz March 28 Early 2023"]
[White "Zubritskiy, Artyom"]
[Black "Osinenko, Anton"]
[WhiteFideId "4181247"]
[BlackFideId "4158970"]
[WhiteElo "2419"]
[BlackElo "2294"]
[Result "1/2-1/2"]
[Round "10"]
[TimeControl "180+2"]
[Date "2023.03.28"]
[WhiteClock "0:00:15"]
[BlackClock "0:00:14"]

1. d4 {[%clk 0:03:00]}  Nf6 {[%clk 0:02:59]} 2. c4 {[%clk 0:03:01]}  e5 {[%clk 0:02:59]} 3. dxe5 {[%clk 0:03:01]}  Ng4 {[%clk 0:03:00]} 4. Nf3 {[%clk 0:03:02]}  Nc6 {[%clk 0:02:57]} 5. Bf4 {[%clk 0:02:58]}  Bb4+ {[%clk 0:02:57]} 6. Nc3 {[%clk 0:02:56]}  Bxc3+ {[%clk 0:02:54]} 7. bxc3 {[%clk 0:02:56]}  Qe7 {[%clk 0:02:55]} 8. Qd5 {[%clk 0:02:39]}  f6 {[%clk 0:02:49]} 9. exf6 {[%clk 0:02:33]}  Nxf6 {[%clk 0:02:50]} 10. Qd3 {[%clk 0:02:27]}  d6 {[%clk 0:02:45]} 11. g3 {[%clk 0:02:20]}  O-O {[%clk 0:02:44]} 12. Bg2 {[%clk 0:02:19]}  Ne4 {[%clk 0:02:37]} 13. O-O {[%clk 0:01:33]}  Nc5 {[%clk 0:02:35]} 14. Qe3 {[%clk 0:01:21]}  Be6 {[%clk 0:02:35]} 15. Nd4 {[%clk 0:01:19]}  Bxc4 {[%clk 0:02:18]} 16. Nxc6 {[%clk 0:01:17]}  Qxe3 {[%clk 0:02:18]} 17. Bxe3 {[%clk 0:01:17]}  bxc6 {[%clk 0:02:18]} 18. Bxc6 {[%clk 0:01:18]}  Rab8 {[%clk 0:02:19]} 19. Rfb1 {[%clk 0:01:08]}  Bxe2 {[%clk 0:02:17]} 20. Bd5+ {[%clk 0:00:57]}  Kh8 {[%clk 0:02:16]} 21. Rb4 {[%clk 0:00:57]}  a5 {[%clk 0:02:02]} 22. Rh4 {[%clk 0:00:47]}  Rb2 {[%clk 0:01:39]} 23. Bd4 {[%clk 0:00:25]}  Rd2 {[%clk 0:01:10]} 24. Rb1 {[%clk 0:00:16]}  h5 {[%clk 0:00:27]} 25. h3 {[%clk 0:00:11]}  Kh7 {[%clk 0:00:26]} 26. g4 {[%clk 0:00:08]}  g6 {[%clk 0:00:26]} 27. Kh1 {[%clk 0:00:04]}  Bf3+ {[%clk 0:00:22]} 28. Bxf3 {[%clk 0:00:03]}  Rxf3 {[%clk 0:00:22]} 29. gxh5 {[%clk 0:00:04]}  g5 {[%clk 0:00:21]} 30. Rg4 {[%clk 0:00:04]}  Rxh3+ {[%clk 0:00:19]} 31. Kg2 {[%clk 0:00:04]}  Rxh5 {[%clk 0:00:19]} 32. Bxc5 {[%clk 0:00:03]}  dxc5 {[%clk 0:00:19]} 33. Rb7 {[%clk 0:00:03]}  Rd7 {[%clk 0:00:18]} 34. Rb5 {[%clk 0:00:03]}  Rd5 {[%clk 0:00:15]} 35. Rxa5 {[%clk 0:00:03]}  Rh4 {[%clk 0:00:15]} 36. Rxh4+ {[%clk 0:00:03]}  gxh4 {[%clk 0:00:16]} 37. c4 {[%clk 0:00:04]}  Rf5 {[%clk 0:00:14]} 38. a4 {[%clk 0:00:04]}  Kg6 {[%clk 0:00:14]} 39. Rb5 {[%clk 0:00:04]}  h3+ {[%clk 0:00:10]} 40. Kxh3 {[%clk 0:00:04]}  Rxf2 {[%clk 0:00:09]} 41. Rxc5 {[%clk 0:00:05]}  Ra2 {[%clk 0:00:10]} 42. a5 {[%clk 0:00:05]}  Kf6 {[%clk 0:00:10]} 43. Kg4 {[%clk 0:00:04]}  Ke6 {[%clk 0:00:10]} 44. Kf4 {[%clk 0:00:05]}  Kd6 {[%clk 0:00:10]} 45. Rd5+ {[%clk 0:00:05]}  Kc6 {[%clk 0:00:09]} 46. Ke4 {[%clk 0:00:06]}  Rh2 {[%clk 0:00:05]} 47. Kd4 {[%clk 0:00:06]}  Rh4+ {[%clk 0:00:05]} 48. Kc3 {[%clk 0:00:07]}  Rh3+ {[%clk 0:00:06]} 49. Kb4 {[%clk 0:00:08]}  Rh1 {[%clk 0:00:06]} 50. Rc5+ {[%clk 0:00:08]}  Kd6 {[%clk 0:00:06]} 51. Rg5 {[%clk 0:00:07]}  Rb1+ {[%clk 0:00:06]} 52. Kc3 {[%clk 0:00:08]}  Kc6 {[%clk 0:00:06]} 53. Rg6+ {[%clk 0:00:07]}  Kb7 {[%clk 0:00:07]} 54. Kd4 {[%clk 0:00:08]}  Ra1 {[%clk 0:00:07]} 55. Rg5 {[%clk 0:00:08]}  Rd1+ {[%clk 0:00:07]} 56. Kc5 {[%clk 0:00:08]}  Ra1 {[%clk 0:00:08]} 57. Kb4 {[%clk 0:00:08]}  Rb1+ {[%clk 0:00:08]} 58. Kc3 {[%clk 0:00:08]}  Ra1 {[%clk 0:00:08]} 59. Kb2 {[%clk 0:00:07]}  Rh1 {[%clk 0:00:08]} 60. Rc5 {[%clk 0:00:07]}  Rh3 {[%clk 0:00:08]} 61. Kc2 {[%clk 0:00:07]}  Rg3 {[%clk 0:00:08]} 62. Rb5+ {[%clk 0:00:07]}  Ka6 {[%clk 0:00:08]} 63. Rc5 {[%clk 0:00:07]}  Kb7 {[%clk 0:00:08]} 64. Kb2 {[%clk 0:00:07]}  Rh3 {[%clk 0:00:08]} 65. a6+ {[%clk 0:00:06]}  Kxa6 {[%clk 0:00:09]} 66. Rxc7 {[%clk 0:00:06]}  Kb6 {[%clk 0:00:09]} 67. Rc8 {[%clk 0:00:07]}  Rg3 {[%clk 0:00:10]} 68. Kc2 {[%clk 0:00:06]}  Rh3 {[%clk 0:00:10]} 69. Rb8+ {[%clk 0:00:07]}  Kc7 {[%clk 0:00:10]} 70. Rb3 {[%clk 0:00:07]}  Rxb3 {[%clk 0:00:10]} 71. Kxb3 {[%clk 0:00:07]}  Kc6 {[%clk 0:00:10]} 72. Kb4 {[%clk 0:00:08]}  Kb6 {[%clk 0:00:11]} 73. c5+ {[%clk 0:00:09]}  Kc6 {[%clk 0:00:11]} 74. Kc4 {[%clk 0:00:09]}  Kc7 {[%clk 0:00:12]} 75. Kb5 {[%clk 0:00:10]}  Kb7 {[%clk 0:00:12]} 76. c6+ {[%clk 0:00:11]}  Kc7 {[%clk 0:00:12]} 77. Kc5 {[%clk 0:00:11]}  Kc8 {[%clk 0:00:13]} 78. Kd5 {[%clk 0:00:12]}  Kc7 {[%clk 0:00:13]} 79. Kc5 {[%clk 0:00:12]}  Kc8 {[%clk 0:00:13]} 80. Kb6 {[%clk 0:00:13]}  Kb8 {[%clk 0:00:13]} 81. c7+ {[%clk 0:00:14]}  Kc8 {[%clk 0:00:14]} 82. Kc6 {[%clk 0:00:15]} 1/2-1/2


[Site "https://www.chess.com"]